lending/lending_fUSD_20250429
["ID","MTS","AMOUNT","RATE_DAILY","PERIOD"]
[359376497,1745961032122,-2752.95,0.00021828,2]
[359376498,1745961032131,-200.0,0.00021828,2]
[359376499,1745961032141,-848.78,0.00021828,2]
[359376500,1745961032150,-2340.07,0.00021828,2]
[359376501,1745961032160,-3014.29,0.00021828,2]
[359376502,1745961032169,-1000.0,0.00021828,2]
[359376503,1745961032179,-23900.0,0.00021828,2]
[359376504,1745961032188,-176.36,0.00021828,2]
[359376505,1745961032198,-568.94,0.00021828,2]
[359376506,1745961032207,-1391.21,0.00021828,2]
[359376507,1745961032217,-166.64,0.00021828,2]
[359376508,1745961032226,-12575.84,0.00021863,2]
[359376509,1745961032235,-188.68,0.00021882,2]
[359376510,1745961032245,-9134.71,0.00021903,2]
[359376511,1745961032254,-500.0,0.00021912,2]
[359376512,1745961032263,-188.68,0.00021937,2]
[359376513,1745961032272,-1083.51,0.00022002,2]
[359376514,1745961032282,-13574.33,0.00022002,2]
[359376515,1745961032291,-163.91024141,0.00022247,2]
[359376516,1745961032301,-158.97000983,0.00022247,2]
[359376517,1745961032310,-186.75,0.00022375,2]
[359376518,1745961032320,-250.0,0.00022435,2]
[359376519,1745961032331,-200.0,0.00022435,2]
[359376520,1745961032340,-250.0,0.00022481,2]
[359376521,1745961032350,-250.0,0.00022481,2]
[359376522,1745961032360,-200.0,0.00022481,2]
[359376523,1745961032370,-160.59,0.00022482,2]
[359376524,1745961032380,-34255.99663988,0.000225,2]
[359376525,1745961032389,-167.10959929,0.000225,2]
[359376526,1745961032398,-1082.36,0.0002266,2]
[359376527,1745961032408,-505.27130888,0.0002271,2]
[359376528,1745961032418,-246.0,0.00022721,2]
[359376529,1745961032428,-724.43104579,0.00022747,2]
[359376530,1745961032438,-150.0,0.00022817,2]
[359376531,1745961032448,-4472.56,0.00022817,2]
[359376532,1745961032459,-1500.0,0.000229,2]
[359376533,1745961032469,-1502.8689114,0.00023,2]
[359376534,1745961032479,-400.0,0.00023,2]
[359376535,1745961032488,-33088.59027685,0.000232,2]
[359376536,1745961032500,-1095.44649016,0.000232,2]
[359376537,1745961037973,-16195.33105141,0.000232,2]
[359376538,1745961037982,-56.4632431,0.000232,2]
[359376539,1745961037993,-102.50676673,0.000232,2]
[359376540,1745961038003,-200.0,0.000235,2]
[359376541,1745961038013,-325.17520111,0.00023722,2]
[359376693,1745961040145,-94.82479889,0.00023722,2]
[359376694,1745961040155,-420.0,0.00023722,2]
[359376695,1745961040165,-1600.50702886,0.00023834,2]
[359376703,1745961040367,-79.49297114,0.00023834,2]
[359376705,1745961040376,-174.68,0.00023836,2]
[359376707,1745961040385,-599.8540682,0.00023867,2]
[359376709,1745961040395,-500.0,0.00023971,2]
[359376711,1745961040404,-500.0,0.00023971,2]
[359376713,1745961040413,-500.0,0.00023971,2]
[359376715,1745961040422,-311.78060314,0.00023971,2]
[359376717,1745961040431,-500.0,0.00023971,2]
[359376719,1745961040441,-500.0,0.00023971,2]
[359376736,1745961040585,-500.0,0.00023971,2]
[359376738,1745961040595,-985.28492513,0.00024,2]
[359376740,1745961040604,-2671.35777477,0.00024,14]
[359376742,1745961040614,-4691.29192693,0.00024,2]
[359376744,1745961040634,-10029.81877166,0.00024,2]
[359376983,1745961042944,-394.468145,0.00023084,2]
[359376986,1745961042953,-531.44261954,0.00024,2]
[359376988,1745961042967,-47554.58948546,0.00024,2]
[359377001,1745961043052,-11603.54002181,0.00024,2]
[359377003,1745961043062,-986.54,0.00024013,2]
[359377005,1745961043071,-500.0,0.00024187,2]
[359377007,1745961043080,-407.22042839,0.0002421,2]
[359377009,1745961043089,-3568.0083663,0.0002421,2]
[359377011,1745961043098,-504.85967794,0.00024471,2]
[359377013,1745961043108,-431.54,0.00024556,2]
[359377015,1745961043117,-1000.0,0.00024556,2]
[359377017,1745961043127,-352.98693179,0.000249,5]
[359377019,1745961043136,-1082.36,0.00024923,2]
[359377021,1745961043146,-200.35374529,0.00025,2]
[359377023,1745961043155,-1722.98085355,0.00025,2]
[359377025,1745961043165,-256.93730955,0.00025,2]
[359377027,1745961043174,-296.1081413,0.00025,2]
[359377029,1745961043183,-200.0,0.00025,2]
[359377031,1745961043193,-2937.49641814,0.00025,2]
[359377033,1745961043203,-1011.65587844,0.00025,2]
[359377038,1745961043240,-367.92193857,0.00025,2]
[359377096,1745961045787,-1200.57,0.00021863,2]
[359377097,1745961045802,-382.97909322,0.00025,2]
[359377098,1745961045817,-1027.69254568,0.00025,2]
[359377099,1745961045832,-161.51017707,0.00025,2]
[359377100,1745961045846,-174.19428098,0.00025,2]
[359377101,1745961045863,-275.80571902,0.00025,2]
[359377102,1745961045880,-125.94618098,0.000251,2]
[359377103,1745961045952,-2774.56495552,0.000251,2]
[359377104,1745961045971,-361.90420452,0.000251,2]
[359377105,1745961045986,-2084.07070574,0.00025281,2]
[359377106,1745961046000,-178.61948714,0.00025281,2]
[359377108,1745961046015,-1000.51067605,0.00025285,2]
[359377110,1745961046029,-280.0,0.000253,10]
[359377113,1745961046043,-2526.96605645,0.00025371,2]
[359377116,1745961046060,-455.427998,0.00025371,2]
[359377151,1745961048605,-425.73168683,0.00025371,2]
[359377152,1745961122098,200.0,0.00027908,117]
[359377153,1745961122184,200.0,0.00025376,117]
[359377154,1745961122417,200.0,0.00025382,117]
[359377159,1745961346635,362.78,0.00024772,120]
[359377160,1745961346867,362.78,0.00027869,120]
[359377161,1745961908815,-344.44242011,0.0002,2]
[359377162,1745961917349,-155.55757989,0.00019999,2]
[359377163,1745961928763,-144.44242011,0.00019999,2]
[359377164,1745961928786,-352.23932308,0.0002,2]
[359377165,1745961932048,303.91599014,0.0002,120]
[359377166,1745961934383,-300.0,0.000199,2]
[359377167,1745961942871,-203.31825681,0.000199,2]
[359377168,1745961949529,-165.85006296,0.000199,2]
[359377169,1745961957512,-177.519776,0.0001983,2]
[359377170,1745961960674,-320.08036717,0.0001983,2]
[359377171,1745961963977,-181.49,0.0001983,2]
[359377172,1745961967263,-170.61,0.0001983,2]
[359377173,1745961971109,-350.0,0.0001983,2]
[359377174,1745961977187,-228.79,0.0001983,2]
[359377175,1745961982577,-180.01,0.0001983,2]
[359377176,1745962036580,-442.89630797,0.0001983,2]
[359377177,1745962051537,-234.90963049,0.0001983,2]
[359377178,1745962061847,-150.0,0.0001983,2]
[359377179,1745962064534,-60.95924502,0.0001983,2]
[359377180,1745962064558,-100.94346314,0.00019865,2]
[359377181,1745962071659,-99.05653686,0.00019865,2]
[359377182,1745962071682,-153.0641577,0.00019873,2]
[359377183,1745962071704,-97.87930544,0.000199,2]
[359377184,1745962076962,-709.26266716,0.000199,2]
[359377185,1745962079852,-326.54782484,0.000199,2]
[359377186,1745962084842,-366.50582,0.000199,2]
[359377187,1745962087459,-300.0,0.000199,2]
[359377188,1745962090701,156.38,0.00016712,2]
[359377189,1745962094106,-206.94635516,0.000199,2]
[359377190,1745962098601,-300.0,0.000199,2]
[359377191,1745962099379,200.0,0.00027397,60]
[359377193,1745962141491,-462.72,0.000199,2]
[359377194,1745962149940,-250.0,0.00019899,2]
[359377195,1745962153064,-50.0,0.00019899,2]
[359377196,1745962153087,-291.27216806,0.000199,2]
[359377197,1745962160350,-252.61519864,0.000199,2]
[359377198,1745962165753,-299.45634724,0.000199,2]
[359377199,1745962169167,-186.50630611,0.000199,2]
[359377200,1745962174110,-150.0,0.000199,2]
[359377201,1745962174482,174.39,0.00019041,2]
[359377202,1745962178031,-245.399974,0.000199,2]
[359377203,1745962181307,-202.24479639,0.000199,2]
[359377215,1745962202022,-300.0,0.00019899,2]
[359377216,1745962202670,2000.0,0.0002,4]
[359377217,1745962209714,-262.84441073,0.00019899,2]
[359377218,1745962214092,-479.58391603,0.00019899,2]
[359377219,1745962216484,250.0,0.00017,2]
[359377220,1745962217577,300.0,0.00019,2]
[359377223,1745962231834,-457.57167324,0.00019899,2]
[359377224,1745962231843,-300.0,0.00019899,2]
[359377225,1745962231853,-2727.64543583,0.000199,2]
[359377226,1745962231895,-452.27916836,0.000199,2]
[359377227,1745962231907,-1108.91019826,0.000199,2]
[359377228,1745962231916,-214.54767016,0.000199,2]
[359377229,1745962231925,-565.13673336,0.000199,2]
[359377230,1745962231934,-2356.52077742,0.000199,2]
[359377231,1745962231946,-16.98211654,0.000199,2]
[359377232,1745962231955,-1294.56784446,0.000199,2]
[359377233,1745962231964,-200.0,0.00019936,2]
[359377234,1745962231973,-215.1571348,0.00019973,2]
[359377235,1745962231982,-500.0,0.00019973,2]
[359377236,1745962231992,-495.25608949,0.00019973,2]
[359377237,1745962232001,-185.95776357,0.00019973,2]
[359377238,1745962232011,-500.0,0.00019973,2]
[359377239,1745962232021,-503.43068466,0.00019973,2]
[359377240,1745962232032,-204.12031234,0.00019973,2]
[359377241,1745962232042,-200.0,0.00019974,2]
[359377242,1745962232052,-850.0,0.00019998,2]
[359377243,1745962232062,-500.0,0.00019999,2]
[359377244,1745962232074,-500.0,0.00019999,2]
[359377245,1745962232084,-300.0,0.00019999,2]
[359377246,1745962232093,-274.1117082,0.00019999,2]
[359377247,1745962232103,-201.09502494,0.00019999,2]
[359377248,1745962232113,-2458.94172251,0.0002,2]
[359377249,1745962232123,-220670.24675101,0.0002,2]
[359377250,1745962232135,-544.64106183,0.0002,2]
[359377251,1745962232205,-525.0,0.0002,2]
[359377258,1745962236263,-571.2136002,0.0002,2]
[359377259,1745962236276,-4445.5335244,0.0002,2]
[359377298,1745962238010,-324.58536069,0.0002,2]
[359377299,1745962238021,-1872.00592201,0.0002,2]
[359377300,1745962238040,-646.75675059,0.0002,2]
[359377301,1745962238239,-2411.7904169,0.0002,2]
[359377302,1745962238251,-5014701.75273695,0.0002,2]
[359377303,1745962238324,-889.94530385,0.0002,2]
[359377304,1745962238343,-282.55999991,0.0002,2]
[359377305,1745962238356,-935.37911818,0.0002,2]
[359377306,1745962238400,-2200.21500561,0.0002,2]
[359377352,1745962240413,-17006.37,0.0002,2]
[359377353,1745962240436,-14837.51873138,0.0002,2]
[359377354,1745962240449,-3758.52769135,0.0002,2]
[359377358,1745962240480,-15000.0,0.0002,2]
[359377360,1745962240495,-3071.32839809,0.0002,2]
[359377361,1745962240507,-1156.2,0.0002,2]
[359377362,1745962240522,-925.01347255,0.0002,2]
[359377363,1745962240534,-9200.0,0.0002,2]
[359377367,1745962240714,-18073.16444534,0.0002,2]
[359377368,1745962240730,-72426.15452624,0.0002,2]
[359377381,1745962243360,-1173298.84775962,0.0002,2]
[359377383,1745962243371,-1015.7,0.0002,2]
[359377390,1745962243419,-475.47215707,0.0002,2]
[359377392,1745962243430,-873.04153788,0.0002,2]
[359377410,1745962243588,-50956.53433579,0.0002,2]
[359377412,1745962243600,-2004.69697155,0.0002,2]
[359377413,1745962243652,-1732.45441035,0.0002,2]
[359377414,1745962243664,-1253.84183608,0.0002,2]
[359377623,1745962245854,-351354.08137045,0.0002,2]
[359377625,1745962245866,-705.51909681,0.0002,2]
[359377627,1745962245877,-781.86105872,0.0002,2]
[359377633,1745962245918,-4033.602,0.0002,2]
[359377635,1745962245929,-564.72500184,0.0002,2]
[359377637,1745962245943,-1890.1,0.0002,2]
[359377642,1745962245987,-452.09238,0.0002,2]
[359377644,1745962245998,-588.748,0.0002,2]
[359377647,1745962246009,-647.61583685,0.0002,2]
[359377649,1745962246020,-630.820596,0.0002,2]
[359377654,1745962246056,-28330.15277344,0.0002,2]
[359377660,1745962246111,-19510.76583152,0.0002,2]
[359377667,1745962246173,-34163.999997,0.0002,2]
[359377669,1745962246186,-3911.46174164,0.0002,2]
[359377714,1745962246636,-6628.0,0.0002,2]
[359377716,1745962246648,-6971.55180099,0.0002,2]
[359377718,1745962246659,-1177.3320079,0.0002,2]
[359377720,1745962246670,-1509.729332,0.0002,2]
[359377723,1745962246680,-8249.9,0.0002,2]
[359377725,1745962246691,-1765.9,0.0002,2]
[359377840,1745962314549,1898.8,0.00030137,120]
[359377841,1745962363468,217.6614167,0.00019148,2]
[359377842,1745962395963,150.99,0.00025965,120]
[359377843,1745962396195,150.99,0.00029674,120]
[359377844,1745962447588,-171.17581681,0.00019773,2]
[359377845,1745962453005,-257.68764477,0.00019773,2]
[359377846,1745962459970,-169.04,0.00019773,2]
[359377847,1745962463231,-294.33578076,0.00019773,2]
[359377848,1745962471152,-93.80588766,0.00019773,2]
[359377849,1745962479118,-170.7393119,0.00019872,2]
[359377850,1745962479144,-153.06415769,0.00019873,2]
[359377851,1745962479167,-170.7393119,0.00019873,2]
[359377852,1745962479188,-176.8805,0.000199,2]
[359377853,1745962479210,-200.0,0.00019922,2]
[359377854,1745962479232,-250.0,0.00019922,2]
[359377855,1745962479254,-15341.0,0.00019973,2]
[359377856,1745962479275,-509.74190564,0.00019973,2]
[359377857,1745962479297,-500.0,0.00019973,2]
[359377858,1745962479319,-500.0,0.00019973,2]
[359377859,1745962479341,-500.0,0.00019973,2]
[359377860,1745962479362,-500.0,0.00019973,2]
[359377861,1745962479383,-500.0,0.00019973,2]
[359377862,1745962479408,-9056.26466688,0.00019981,2]
[359377863,1745962479435,-200.0,0.0001999,2]
[359377864,1745962479457,-218.65433827,0.00019999,2]
[359377865,1745962479479,-178.48042543,0.00019999,2]
[359377866,1745962479502,-54695.49714264,0.0002,2]
[359377867,1745962479525,-285178.93823965,0.0002,2]
[359377868,1745962560636,-511.39034072,0.00019973,2]
[359377869,1745962560657,-171.1681045,0.00019999,2]
[359377870,1745962560680,-1200.0,0.00019999,2]
[359377871,1745962560702,-300.0,0.00019999,2]
[359377872,1745962560725,-694817.44155478,0.0002,2]
[359377873,1745962651271,-168.00663457,0.00019917,2]
[359377874,1745962651295,-200.0,0.00019986,2]
[359377875,1745962651320,-300.0,0.00019989,2]
[359377876,1745962651341,-21391.7177379,0.0001999,2]
[359377877,1745962651362,-210.17827603,0.00019999,2]
[359377878,1745962651384,-69730.0973515,0.0002,2]
[359377879,1745962709970,211.06535107,0.00027397,60]
[359377880,1745962711818,-178.3320555,0.000196,2]
[359377881,1745962715733,-20.3069445,0.000196,2]
[359377882,1745962715754,-264.02161739,0.000196,2]
[359377883,1745962722473,-205.74733371,0.000196,2]
[359377884,1745962729227,-248.519776,0.000196,2]
[359377885,1745962734375,-179.0,0.000196,2]
[359377886,1745962743218,-250.0,0.000196,2]
[359377887,1745962748080,-245.72,0.000196,2]
[359377888,1745962752421,-272.15082242,0.000196,2]
[359377889,1745962757466,-180.60193739,0.000196,2]
[359377890,1745962761546,-629.70037261,0.000196,2]
[359377891,1745962765353,-158.36508478,0.000196,2]
[359377892,1745962767969,-591.4810557,0.000196,2]
[359377893,1745962912268,743.01484865,0.00018936,2]
[359377894,1745962913544,-167.20766283,0.00019383,2]
[359377895,1745962917580,-189.57488143,0.00019383,2]
[359377896,1745962923103,-386.23230439,0.00019383,2]
[359377897,1745962923128,-43.51011572,0.00019545,2]
[359377898,1745962925291,1077.84,0.0003,30]
[359377899,1745962927317,-207.42945348,0.00019545,2]
[359377900,1745962933601,-326.289,0.00019545,2]
[359377905,1745963025013,-161.28419144,0.00019402,2]
[359377906,1745963031617,-299.87930544,0.00019402,2]
[359377907,1745963038633,-510.95924502,0.00019402,2]
[359377908,1745963050562,-163.022522,0.00019402,2]
[359377909,1745963056582,-166.67,0.00019402,2]
[359377910,1745963079857,250.0,0.00019825,7]
[359377911,1745963100990,2598.4493725,0.0003,30]
[359377912,1745963104152,-256.00608287,0.00019354,2]
[359377913,1745963111910,-254.44391713,0.00019354,2]
[359377914,1745963121520,-285.81480427,0.00019354,2]
[359377915,1745963125811,-258.021591,0.00019354,2]
[359377916,1745963136139,-250.0,0.00019354,2]
[359377917,1745963142460,-248.09194992,0.00019354,2]
[359377918,1745963150877,-168.96440878,0.00019354,2]
[359377919,1745963182867,499.185166,0.00019305,2]
[359377930,1745963403848,2000.0,0.0002,4]
[359377931,1745963417310,391.29,0.00019123,2]
[359377946,1745963431949,-200.0,0.00019402,2]
[359377948,1745963431959,-250.0,0.00019402,2]
[359377950,1745963431969,-200.0,0.00019427,2]
[359377953,1745963431978,-180.0,0.000195,2]
[359377955,1745963431987,-170.0,0.00019522,2]
[359377958,1745963432009,-121.17651114,0.00019522,2]
[359377960,1745963432018,-607.61,0.00019523,2]
[359377962,1745963432027,-454.40056406,0.00019664,2]
[359377964,1745963432036,-1500.0,0.00019697,2]
[359377965,1745963432045,-155.66344872,0.00019698,2]
[359377966,1745963432055,-4341.6109,0.0001979,2]
[359377967,1745963432064,-1200.0,0.00019797,2]
[359377968,1745963432073,-300.0,0.00019797,2]
[359377969,1745963432082,-1786.34631924,0.00019798,2]
[359377970,1745963432092,-205.74733371,0.00019798,2]
[359377971,1745963432100,-155.66344872,0.00019798,2]
[359377972,1745963432110,-14929.39653884,0.00019799,2]
[359377973,1745963432120,-300.0,0.00019813,2]
[359377974,1745963432129,-520.02,0.00019814,2]
[359377975,1745963432139,-150.0,0.00019863,2]
[359377976,1745963432148,-271.70452991,0.00019873,2]
[359377977,1745963432158,-520.57578932,0.00019873,2]
[359377978,1745963432167,-579.77007519,0.00019873,2]
[359377979,1745963432177,-500.0,0.00019873,2]
[359377980,1745963432186,-838.62,0.0001988,2]
[359377981,1745963432195,-838.62,0.0001988,2]
[359377982,1745963432204,-838.62,0.0001988,2]
[359377983,1745963432213,-838.62,0.0001988,2]
[359377984,1745963432222,-838.62,0.0001988,2]
[359377985,1745963432231,-838.62,0.0001988,2]
[359377986,1745963432242,-838.62,0.0001988,2]
[359377987,1745963432251,-838.62,0.0001988,2]
[359377988,1745963432260,-838.62,0.0001988,2]
[359377989,1745963432270,-838.62,0.0001988,2]
[359377990,1745963432279,-454.40056406,0.00019886,2]
[359377991,1745963432288,-1034621.2381,0.0001989,2]
[359377992,1745963432297,-850.0,0.00019899,2]
[359377994,1745963432306,-9050.0370584,0.00019899,2]
[359377996,1745963432315,-1488.1735,0.000199,2]
[359377998,1745963432324,-2532.0675,0.000199,2]
[359378000,1745963432334,-184.1881,0.000199,2]
[359378002,1745963432343,-664.5333,0.000199,2]
[359378004,1745963432351,-41700.0,0.000199,2]
[359378006,1745963432360,-1517.3993,0.000199,2]
[359378008,1745963432369,-10952.806,0.000199,2]
[359378010,1745963432378,-938.0889,0.000199,2]
[359378012,1745963432387,-24476.581,0.000199,2]
[359378014,1745963432396,-151.6755,0.000199,2]
[359378016,1745963432405,-6864.3715,0.000199,2]
[359378018,1745963432414,-1293.6604,0.000199,2]
[359378020,1745963432423,-168.01,0.00019905,2]
[359378022,1745963432433,-486.68,0.00019905,2]
[359378023,1745963432442,-150.0,0.00019905,2]
[359378024,1745963432453,-1852.42,0.00019905,2]
[359378025,1745963432463,-13472.56,0.00019905,2]
[359378026,1745963432472,-1562.32828189,0.00019907,2]
[359378027,1745963432481,-213.30141854,0.00019917,2]
[359378028,1745963432490,-28770.84228443,0.00019917,2]
[359378029,1745963432499,-155.08545776,0.00019917,2]
[359378030,1745963432508,-500.0,0.00019973,2]
[359378031,1745963432517,-594.19862053,0.00019973,2]
[359378032,1745963432526,-155.25028594,0.00019973,2]
[359378033,1745963432535,-500.0,0.00019973,2]
[359378034,1745963432544,-500.0,0.00019973,2]
[359378035,1745963432553,-500.0,0.00019973,2]
[359378036,1745963432562,-302.17365237,0.00019973,2]
[359378037,1745963432572,-500.0,0.00019973,2]
[359378038,1745963432581,-500.0,0.00019973,2]
[359378039,1745963432591,-545.87496632,0.00019973,2]
[359378040,1745963432600,-153.81354159,0.00019973,2]
[359378041,1745963432609,-500.0,0.00019973,2]
[359378042,1745963432619,-500.0,0.00019973,2]
[359378043,1745963432628,-536.76792142,0.00019973,2]
[359378044,1745963432638,-500.0,0.00019973,2]
[359378045,1745963432648,-1351991.52536949,0.0002,2]
[359378046,1745963432660,-3639.23771562,0.0002,2]
[359378047,1745963432675,-18922.84690001,0.0002,2]
[359378048,1745963432689,-12887.23624443,0.0002,2]
[359378049,1745963432699,-165.52352246,0.00020017,2]
[359378050,1745963432708,-1258.39,0.0002014,2]
[359378051,1745963432717,-2463.81,0.00020236,2]
[359378052,1745963432727,-500.0,0.00020658,2]
[359378053,1745963432736,-14929.39653878,0.00020663,2]
[359378054,1745963432747,-1480.71,0.00020711,2]
[359378055,1745963432757,-28770.84228439,0.00020767,2]
[359378056,1745963432766,-9228.11881252,0.00020848,2]
[359378057,1745963432775,-246.0,0.00020914,2]
[359378058,1745963432785,-2060.75,0.00020925,2]
[359378059,1745963432795,-350.0,0.00021,2]
[359378060,1745963432804,-4000.0,0.00021054,2]
[359378061,1745963432814,-182.17,0.00021132,2]
[359378062,1745963432823,-200.0,0.00021289,2]
[359378063,1745963432833,-250.0,0.00021289,2]
[359378064,1745963432843,-200.0,0.00021343,2]
[359378065,1745963432852,-250.0,0.00021343,2]
[359378066,1745963432861,-200.0,0.00021343,2]
[359378067,1745963432871,-200.0,0.00021404,2]
[359378068,1745963432880,-1786.3463192,0.0002155,2]
[359378069,1745963432890,-420.0,0.00021561,2]
[359378070,1745963432899,-28770.84228439,0.00021618,2]
[359378071,1745963432909,-500.0,0.00021618,2]
[359378072,1745963432918,-1680.0,0.00021665,2]
[359378073,1745963432927,-1642.68,0.00021797,2]
[359378074,1745963432937,-23900.0,0.00021819,2]
[359378075,1745963432946,-168.01,0.00021895,2]
[359378076,1745963432956,-1000.0,0.00021897,2]
[359378077,1745963432965,-150.0,0.00021917,2]
[359378078,1745963432974,-2000.0,0.00022,4]
[359378079,1745963432984,-2930.29,0.00022058,2]
[359378080,1745963432993,-250.0,0.0002206,2]
[359378081,1745963433003,-200.0,0.00022174,2]
[359378082,1745963433013,-398.48,0.00022236,2]
[359378083,1745963433022,-236.7,0.00022256,2]
[359378084,1745963433033,-150.99,0.00022256,2]
[359378085,1745963433042,-1258.39,0.00022404,2]
[359378086,1745963433052,-1147.0,0.00022439,2]
[359378087,1745963433062,-28770.84228439,0.00022468,2]
[359378088,1745963433071,-213.30141851,0.00022515,2]
[359378089,1745963433081,-4409.24,0.00022601,2]
[359378090,1745963433090,-171.99,0.00022704,2]
[359378091,1745963433100,-151.0,0.00022989,2]
[359378092,1745963433110,-195.82075595,0.00022989,2]
[359378093,1745963433121,-207.4,0.00022989,2]
[359378094,1745963433131,-400.0,0.00023,2]
[359378095,1745963433141,-150.0,0.00023287,2]
[359378096,1745963433151,-1786.3463192,0.00023302,2]
[359378097,1745963433160,-28770.84228439,0.00023319,2]
[359378098,1745963433171,-1002.5338,0.00023429,2]
[359378099,1745963433180,-587.0,0.00023483,2]
[359378100,1745963433189,-155.08545775,0.00023655,2]
[359378101,1745963433199,-2351.0,0.00023709,2]
[359378102,1745963433207,-500.0,0.00023801,2]
[359378103,1745963433217,-174.68,0.00023836,2]
[359378104,1745963433227,-168.01,0.00023886,2]
[359378105,1745963433236,-7764.93574954,0.00024,2]
[359378106,1745963433561,-27201.97977919,0.00024,2]
[359378107,1745963433571,-2000.0,0.00024,4]
[359378108,1745963433580,-28770.84228439,0.00024169,2]
[359378109,1745963433591,-165.52352241,0.00024332,2]
[359378110,1745963433600,-156.587,0.00024358,2]
[359378111,1745963433610,-215.0738,0.00024358,2]
[359378112,1745963433619,-1000.0,0.00024635,2]
[359378113,1745963433629,-150.0,0.00024657,2]
[359378114,1745963433638,-1258.39,0.00024668,2]
[359378115,1745963433648,-389.42,0.00024772,2]
[359378116,1745963433659,-550.46888103,0.00024773,2]
[359378117,1745963433668,-500.0,0.00024773,2]
[359378118,1745963433678,-519.07248409,0.00024773,2]
[359378119,1745963433688,-500.0,0.00024773,2]
[359378120,1745963433699,-500.0,0.00024773,2]
[359378121,1745963433708,-500.0,0.00024773,2]
[359378122,1745963433718,-245.82421062,0.00024773,2]
[359378123,1745963433729,-500.0,0.00024773,2]
[359378124,1745963433739,-500.0,0.00024773,2]
[359378125,1745963433749,-605.07222308,0.00024773,2]
[359378126,1745963433759,-500.0,0.00024841,2]
[359378127,1745963433770,-334.38,0.00024841,2]
[359378128,1745963433780,-334.38,0.00024841,2]
[359378129,1745963433790,-334.38,0.00024841,2]
[359378130,1745963433965,-334.38,0.00024841,2]
[359378131,1745963433976,-334.38,0.00024841,2]
[359378132,1745963433986,-334.38,0.00024841,2]
[359378133,1745963433996,-164.78092446,0.00024842,2]
[359378134,1745963434007,-51536.65098682,0.00024842,2]
[359378135,1745963434020,-1437.53555157,0.00024842,2]
[359378136,1745963434041,-640.20475102,0.00024842,2]
[359378138,1745963437992,-14929.39653878,0.00021526,2]
[359378139,1745963438001,-43202.18950146,0.00024842,2]
[359378140,1745963438103,-381.60186863,0.00024842,2]
[359378141,1745963438529,-320.13082908,0.00024842,2]
[359378142,1745963438540,-1329.38,0.00024842,2]
[359378214,1745963440327,-7045.58492199,0.0002239,2]
[359378215,1745963440338,-4939.780016,0.0002239,2]
[359378216,1745963440348,-2944.03160079,0.0002239,2]
[359378217,1745963440356,-126.56652251,0.00024842,2]
[359378218,1745963440367,-3255.66817225,0.00024842,2]
[359378219,1745963440944,-128.38368721,0.00024842,2]
[359378229,1745963443431,-908.96602433,0.00024842,2]
[359378230,1745963443443,-28776.60923278,0.00024842,2]
[359378231,1745963443452,-1000.0,0.00024843,2]
[359378232,1745963443462,-500.0,0.00024873,2]
[359378233,1745963443472,-151.0,0.000249,7]
[359378234,1745963443481,-151.0,0.000249,7]
[359378235,1745963443491,-4435.06422387,0.000249,2]
[359378341,1745963444715,217.66,0.00024881,120]
[359378349,1745963444915,217.66,0.00027369,120]
[359378375,1745963445166,217.66,0.00029857,120]
[359378487,1745963446202,-217.66,0.00019905,2]
[359378489,1745963446211,-201.76366182,0.00022393,2]
[359380003,1745963703163,150.92763605,0.0002,5]
[359380004,1745964028561,250.0,0.00017,2]
[359380005,1745964029623,300.0,0.00019,2]